bitfinex-derivatives/quotes_SOLF0:USTF0_20240906
["timestamp","ask_amount","ask_price","bid_price","bid_amount"]
[1725633251398,3.8715,129.18,129.12,3.8732]
[1725633251399,44.63,129.21,129.17,0.05765055]
[1725633251604,2.7675,129.2,129.17,0.05765055]
[1725633251906,2.7675,129.2,129.11,3.88188253]
[1725633251907,3.8733,129.12,129.11,3.88188253]
[1725633252104,3.8617511,129.15,129.1,2.7771]
[1725633252300,3.8736,129.11,129.1,2.7771]
[1725633253196,3.8742,129.09,129.08,3.9329854]
[1725633253402,48.40696679,129.16,129.06,2.8157]
[1725633253702,44.63,129.18,129.06,2.8157]
[1725633253906,3.84033372,129.17,129.09,3.8742]
[1725633254300,3.84033372,129.17,129.09,6.7038]
[1725633254504,2.6791,129.19,129.09,6.7038]
[1725633255007,0.05870538,129.14,129.11,3.8733]
[1725633255305,3.77756797,129.21,129.13,44.63]
[1725633255508,44.63,129.25,129.13,48.54295758]
[1725633255703,48.42151591,129.25,129.13,48.54295758]
[1725633256101,48.42151591,129.25,129.13,48.4900933]
[1725633256707,47.3116,129.27,129.18,0.05957295]
[1725633256903,2.7316,129.25,129.18,0.05957295]
[1725633257103,3.8712,129.19,129.18,0.05957295]
[1725633257402,1.0,129.24,129.13,3.88760175]
[1725633257597,3.8712,129.19,129.14,44.63]
[1725633257802,1.0,129.24,129.14,44.63]
[1725633258003,1.0,129.24,129.17,0.0584806]
[1725633258205,3.8715,129.18,129.17,0.0584806]
[1725633258409,1.0,129.24,129.17,0.0584806]
[1725633258798,6.60100633,129.25,129.17,0.0584806]
[1725633259110,6.60100633,129.25,129.17,3.86206753]
[1725633259407,6.60100633,129.25,129.14,44.63]
[1725633259605,51.23100633,129.25,129.14,44.63]
[1725633259797,44.63,129.21,129.09,5.629]
[1725633260002,48.57606657,129.21,129.2,4.468e-05]
[1725633260199,48.57606657,129.21,129.05,44.63]
[1725633260406,44.63,129.15,129.06,2.694]
[1725633260604,44.63,129.13,129.06,2.694]
[1725633260811,3.8755,129.05,129.01,5.1844]
[1725633261004,44.63,129.11,129.02,2.694]
[1725633261310,44.63,129.13,129.02,2.694]
[1725633261907,3.8746,129.08,129.04,3.8755]
[1725633262107,48.41744214,129.13,129.04,3.79673933]
[1725633262303,0.05460142,129.09,129.02,2.694]
[1725633262508,3.8745,129.08,129.04,3.8755]
[1725633262710,0.05460142,129.09,129.04,3.89242289]
[1725633263012,3.92880142,129.09,129.04,7.69878136]
[1725633263915,0.05460142,129.09,129.04,3.82308136]
[1725633264207,0.05460142,129.09,129.02,2.694]
[1725633264811,3.8747,129.08,129.02,2.694]
[1725633265112,0.05460142,129.09,129.02,2.694]
[1725633265312,44.63,129.07,129.0,196.29448777]
[1725633265508,47.215,129.08,129.0,196.29448777]
[1725633265708,44.63,129.08,129.0,196.29448777]
[1725633265916,44.63,129.08,129.01,3.8766]
[1725633265917,3.8756,129.05,129.01,3.8766]
[1725633266216,44.63,129.1,129.0,196.29448777]
[1725633266407,2.585,129.12,129.01,44.63]
[1725633266602,2.585,129.12,129.0,196.29448777]
[1725633266603,44.63,129.09,129.03,0.0497703]
[1725633266805,0.05816639,129.04,129.03,0.0497703]
[1725633267016,7.76871566,129.04,129.03,0.0497703]
[1725633267214,0.05816639,129.04,129.0,196.29448777]
[1725633267413,44.63,129.05,129.0,196.29448777]
[1725633267614,48.50631757,129.05,129.0,196.29448777]
[1725633267817,3.8766,129.01,129.0,196.29448777]
[1725633269018,3.8766,129.01,129.0,182.05518777]
[1725633269217,3.8766,129.01,129.0,178.99218777]
[1725633271716,0.05552071,129.02,129.0,178.99218777]
[1725633272420,44.63,129.1,129.0,178.99218777]
[1725633272725,44.63,129.08,129.0,178.99218777]
[1725633273312,3.8766,129.01,129.0,178.99218777]
[1725633273620,3.9242074,129.05,129.0,178.99218777]
[1725633273816,1.0,129.07,129.0,178.99218777]
[1725633274022,4.79551945,129.07,129.0,178.99218777]
[1725633274317,44.63,129.06,129.0,178.99218777]
[1725633274625,3.8766,129.01,129.0,178.99218777]
[1725633275117,0.05923668,129.05,128.98,2.592]
[1725633275618,47.4127,129.06,128.98,2.592]
[1725633276015,3.8768,129.01,128.98,2.592]
[1725633276212,0.05867678,129.03,128.98,2.592]
[1725633276613,3.8765,129.02,128.98,6.4694]
[1725633277123,0.05867678,129.03,128.98,6.4694]
[1725633277419,3.8768,129.01,128.98,2.592]
[1725633278316,3.8769,129.0,128.96,5.501]
[1725633278917,3.8761,129.03,128.99,3.877]
[1725633279114,44.63,129.06,128.96,5.501]
[1725633279524,0.05579678,128.99,128.96,5.501]
[1725633279724,44.63,129.06,128.96,5.501]
[1725633280030,3.8763,129.03,128.99,3.8771]
[1725633280325,4.79551945,129.07,128.96,5.55275825]
[1725633280530,1.0,129.07,128.99,44.63]
[1725633280726,4.83680961,129.07,128.99,44.63]
[1725633281025,1.0,129.07,128.99,44.63]
[1725633281213,1.0,129.07,129.02,0.05044992]
[1725633281616,3.8753,129.06,129.02,3.92644992]
[1725633282022,50.0139,129.12,129.02,0.05044992]
[1725633282223,3.8756,129.05,129.01,52.42579251]
[1725633282415,5.3839,129.12,129.01,48.54939251]
[1725633282615,3.8743,129.09,129.05,3.8753]
[1725633282827,3.81663422,129.14,129.06,0.05657147]
[1725633283030,114.40930531,129.15,129.06,0.05657147]
[1725633283229,3.874,129.1,129.06,3.93137147]
[1725633283424,3.84027503,129.12,129.06,3.8748]
[1725633283624,114.40930531,129.15,129.06,3.8748]
[1725633283825,3.8742,129.09,129.06,3.8748]
[1725633284031,3.89995838,129.13,129.07,0.05581511]
[1725633284324,3.8745,129.08,129.07,0.05581511]
[1725633284718,44.63,129.12,129.04,5.2793]
[1725633285025,3.8743,129.09,129.05,2.7637]
[1725633285328,3.83562438,129.15,129.06,0.05174992]
[1725633285518,44.63,129.17,129.06,0.05174992]
[1725633285724,5.5141,129.18,129.06,44.68174992]
[1725633285924,9.35243725,129.18,129.06,44.63]
[1725633286530,6.57053725,129.18,129.11,0.05755061]
[1725633287124,3.8733,129.12,129.11,0.05755061]
[1725633288234,6.57053725,129.18,129.11,0.05755061]
[1725633288733,3.8733,129.12,129.11,0.05755061]
[1725633289538,44.63,129.15,129.05,2.7637]
[1725633289539,3.8751,129.06,129.05,2.7637]
[1725633289733,3.85437052,129.09,129.02,2.5976]
[1725633289928,44.63,129.1,129.02,2.5976]
[1725633290132,48.53086006,129.1,129.02,2.5976]
[1725633290540,44.63,129.08,128.98,44.63]
[1725633290835,3.8762,129.03,128.99,6.4746]
[1725633291334,44.63,129.08,128.99,2.5976]
[1725633292227,3.8761,129.03,128.99,6.4746]
[1725633292640,44.63,129.08,128.99,2.5976]
[1725633292934,48.53086006,129.1,129.0,44.63]
[1725633293135,44.63,129.1,129.0,44.63]
[1725633293340,44.63,129.1,129.02,3.8763]
[1725633293535,3.95251077,129.09,129.02,7.83540087]
[1725633293732,3.95251077,129.09,129.02,3.8763]
[1725633294236,3.95251077,129.09,129.02,3.89707638]
[1725633294435,3.86373821,129.09,128.99,6.4746]
[1725633294629,44.63,129.1,128.99,6.4746]
[1725633294830,3.8766,129.01,128.99,2.5976]
[1725633295230,44.63,129.06,128.99,2.5976]
[1725633295630,44.63,129.04,128.96,5.4063]
[1725633295845,3.80686309,129.03,128.96,9.2844]
[1725633296036,3.8774,128.99,128.96,9.2844]
[1725633296343,3.8774,128.99,128.96,5.4063]
[1725633296938,3.9235738,129.02,128.96,9.2843]
[1725633297237,44.63,129.04,128.96,9.2843]
[1725633297444,3.8771,129.0,128.96,9.2843]
[1725633299851,3.8776,128.98,128.96,2.8027]
[1725633300052,44.63,129.04,128.96,2.8027]
[1725633300352,3.8771,129.0,128.96,6.6806]
[1725633300646,48.54379237,129.04,128.95,6.43511429]
[1725633300844,48.54379237,129.04,128.95,2.5884]
[1725633301043,7.8609,129.07,128.95,2.5884]
[1725633301044,44.63,129.01,128.95,2.5884]
[1725633301244,3.79592107,129.0,128.95,2.5884]
[1725633302553,3.79592107,129.0,128.93,3.79204372]
[1725633302554,44.63,129.01,128.9,44.63]
[1725633302851,44.63,129.01,128.88,2.6261]
[1725633302852,44.63,128.97,128.89,2.8129]
[1725633303450,0.05013286,128.94,128.89,2.8129]
[1725633303643,3.8796,128.91,128.89,2.8129]
[1725633304148,0.05013286,128.94,128.89,2.8129]
[1725633304355,44.63,128.97,128.89,2.8129]
[1725633305652,44.63,128.95,128.89,2.8129]
[1725633306151,37.24,128.94,128.87,3.8806]
[1725633306354,41.18144584,128.94,128.86,10.42955477]
[1725633306658,3.88,128.9,128.86,10.42955477]
[1725633306843,41.18144584,128.94,128.86,2.5815]
[1725633307050,3.8808,128.87,128.86,2.5815]
[1725633307247,37.24,128.9,128.82,6.57999992]
[1725633307556,3.8814,128.86,128.82,6.57999992]
[1725633307753,37.24,128.9,128.82,6.57999992]
[1725633307954,0.04995966,128.88,128.82,6.57999992]
[1725633308154,3.8816,128.85,128.82,6.57999992]
[1725633309050,0.05836572,128.85,128.82,10.46219992]
[1725633309248,0.05836572,128.85,128.83,2.5934]
[1725633309660,3.93986572,128.85,128.83,2.5934]
[1725633309849,0.05836572,128.85,128.83,2.5934]
[1725633310049,48.62165713,128.92,128.83,2.5934]
[1725633310349,2.8594,128.93,128.83,47.2934]
[1725633310350,2.75,128.93,128.83,47.2934]
[1725633310545,3.8802,128.9,128.83,47.34910107]
[1725633310746,47.45,128.93,128.83,2.64910107]
[1725633311154,47.45,128.93,128.83,2.5934]
[1725633311353,44.7,128.9,128.83,2.5934]
[1725633311555,44.7,128.88,128.83,2.5934]
[1725633311757,48.5805,128.88,128.87,0.05588256]
[1725633312156,44.7,128.88,128.83,2.5934]
[1725633312549,3.8822,128.83,128.76,47.4423]
[1725633313249,0.173,128.92,128.81,44.7]
[1725633313449,51.28993572,128.93,128.82,2.6079]
[1725633313656,51.28993572,128.93,128.85,3.8812]
[1725633313847,51.28993572,128.93,128.83,2.7104]
[1725633314050,51.28993572,128.93,128.85,3.8812]
[1725633314559,51.28993572,128.93,128.87,0.05052905]
[1725633315659,3.8805,128.88,128.87,0.05052905]
[1725633316058,3.8803,128.89,128.87,0.05052905]
[1725633316363,3.91082466,129.01,128.87,44.75052905]
[1725633316659,3.8775,128.99,128.89,44.7]
[1725633316851,2.5585,129.0,128.92,44.7]
[1725633317050,44.7,129.02,128.92,44.7]
[1725633317051,3.91860499,129.02,128.93,2.661]
[1725633317256,3.8771,129.0,128.93,5.3383]
[1725633317552,2.5585,129.04,128.95,0.05034066]
[1725633317753,3.8754,129.06,128.98,44.7]
[1725633317955,44.7,129.1,129.0,44.7]
[1725633318158,2.5585,129.11,129.03,3.876]
[1725633318366,2.5585,129.11,129.01,5.3383]
[1725633318567,2.5585,129.11,129.02,3.94414631]
[1725633318752,3.875,129.07,129.06,0.05062253]
[1725633319251,2.5585,129.11,129.06,0.05062253]
[1725633319451,3.8748,129.07,129.06,0.05062253]
[1725633320570,3.8748,129.07,129.01,2.661]
[1725633320571,3.8762,129.03,129.01,2.661]
[1725633321364,3.8763,129.02,128.96,2.7499]
[1725633321555,44.7,129.02,128.96,2.6236]
[1725633321957,44.7,129.04,128.96,2.6236]
[1725633322163,44.7,129.04,128.96,6.40564752]
[1725633322368,44.7,129.02,128.96,2.6236]
[1725633322861,48.64877711,129.02,128.96,2.6236]
[1725633323069,44.7,129.04,128.96,2.6236]
[1725633323363,44.7,129.06,128.96,2.6236]
[1725633323566,3.8661878,129.05,128.96,2.6236]
[1725633323964,44.7,129.04,128.96,2.6236]
[1725633324157,3.8767,129.01,128.96,6.5016]
[1725633324563,0.173,129.1,128.96,2.6236]
[1725633324767,44.7,129.07,128.99,3.8769]
[1725633324966,3.81170048,129.06,128.99,3.8769]
[1725633325170,3.876,129.03,128.99,3.8769]
[1725633325363,3.876,129.03,128.98,3.8774]
[1725633325563,3.81170048,129.06,128.96,5.3105]
[1725633325769,44.7,129.05,128.96,5.3105]
[1725633325969,3.88729869,129.04,128.96,9.1885]
[1725633326269,47.4601,129.08,128.96,5.3105]
[1725633326573,2.7601,129.08,128.98,44.7]
[1725633326771,3.8756,129.05,128.98,44.7]
[1725633327064,2.7601,129.08,128.98,44.7]
[1725633327269,1.0,129.09,129.0,44.7]
[1725633327463,2.7601,129.11,129.0,44.7]
[1725633327663,2.7601,129.11,129.02,44.7]
[1725633327868,2.7601,129.11,129.03,3.81325122]
[1725633328076,2.7601,129.11,129.02,3.8761]
[1725633328275,2.7601,129.11,129.03,3.88686892]
[1725633328572,3.875,129.07,129.03,3.88686892]
[1725633328776,2.7601,129.11,129.03,3.88686892]
[1725633328966,2.7601,129.11,129.0,44.7]
[1725633329361,2.7601,129.11,129.04,3.8754]
[1725633329570,2.7601,129.11,129.03,3.86942859]
[1725633329770,2.7601,129.11,129.0,44.7]
[1725633330164,44.7,129.16,129.06,44.7]
[1725633330368,3.8733,129.12,129.07,2.6428]
[1725633330673,3.79927969,129.15,129.07,2.6428]
[1725633330869,44.7,129.16,129.07,2.6428]
[1725633331070,48.59268237,129.16,129.07,2.6428]
[1725633331975,44.7,129.14,129.07,2.6428]
[1725633332367,3.875,129.07,129.02,44.7]
[1725633332564,48.5383965,129.14,129.01,2.5843]
[1725633332765,48.5383965,129.14,129.03,44.7]
[1725633332976,3.8736,129.11,129.04,5.2276]
[1725633333180,3.8736,129.11,129.05,44.7]
[1725633333670,2.6102,129.15,129.05,44.7]
[1725633334073,0.05543045,129.09,129.06,3.8751]
[1725633334376,2.827,129.18,129.07,44.7]
[1725633334578,48.62595859,129.2,129.12,3.8731]
[1725633335276,2.5998,129.21,129.13,44.7]
[1725633335476,2.5998,129.21,129.13,49.9481]
[1725633335672,2.5998,129.21,129.15,0.05939616]
[1725633336270,2.7621,129.25,129.15,44.75939616]
[1725633336772,3.8703,129.22,129.17,3.8717]
[1725633336975,2.7621,129.25,129.17,3.8717]
[1725633337172,3.8709,129.2,129.15,44.7]
[1725633337473,2.7621,129.25,129.18,0.04893651]
[1725633338078,2.7621,129.25,129.16,3.872]
[1725633338575,2.7621,129.25,129.2,0.05800475]
[1725633339271,2.7621,129.25,129.13,12.98281964]
[1725633339471,44.7,129.22,129.13,9.10991964]
[1725633339679,3.8726,129.15,129.13,3.86181964]
[1725633339872,1.0,129.24,129.13,44.7]
[1725633339873,45.7,129.24,129.13,44.7]
[1725633340073,45.7,129.24,129.14,2.812]
[1725633340287,3.8714,129.19,129.14,2.812]
[1725633340475,3.87899876,129.2,129.14,2.812]
[1725633340777,3.8731,129.13,129.09,3.95218011]
[1725633340976,44.7,129.18,129.08,2.812]
[1725633341168,44.7,129.16,129.08,2.812]
[1725633341380,3.8735,129.12,129.08,2.812]
[1725633341776,2.7322,129.17,129.08,2.812]
[1725633341978,44.7,129.16,129.08,2.812]
[1725633342178,0.0558872,129.11,129.09,0.05795915]
[1725633342374,2.7322,129.17,129.09,0.05795915]
[1725633342577,3.8728,129.14,129.1,3.8738]
[1725633342779,2.7322,129.17,129.08,51.38165497]
[1725633342986,1.225,129.19,129.08,51.38165497]
[1725633343283,44.7,129.18,129.08,6.68165497]
[1725633343877,48.61110172,129.2,129.12,0.05339085]
[1725633344075,2.9572,129.23,129.12,0.05339085]
[1725633344379,3.8721,129.17,129.12,3.92649085]
[1725633344675,2.8175,129.22,129.12,44.7]
[1725633345071,2.8175,129.22,129.14,3.8727]
[1725633345276,2.8175,129.22,129.13,0.05799914]
[1725633345480,2.8175,129.22,129.12,44.7]
[1725633345985,2.8175,129.22,129.16,0.05350519]
[1725633346380,3.872,129.17,129.16,0.05350519]
[1725633348178,44.7,129.18,129.09,2.7036]
[1725633348378,44.7,129.16,129.09,2.7036]
[1725633348785,44.7,129.16,129.03,44.7]
[1725633348980,44.7,129.16,129.05,44.7]
[1725633348981,2.5987,129.15,129.05,44.7]
[1725633349188,3.8739,129.1,129.07,3.8747]
[1725633349387,3.8739,129.1,129.05,48.56539409]
[1725633349686,44.7,129.14,129.05,3.86539409]
[1725633349890,44.7,129.14,129.03,44.7]
[1725633350186,2.5987,129.15,129.05,44.7]
[1725633350381,44.7,129.18,129.07,44.7]
[1725633350685,2.9361,129.19,129.09,44.7]
[1725633350983,2.9361,129.19,129.1,2.7412]
[1725633351184,2.9361,129.19,129.1,6.5382412]
[1725633351488,2.9361,129.19,129.1,2.7412]
[1725633351689,2.6537,129.19,129.1,6.68544337]
[1725633351874,3.8729,129.14,129.1,6.6149]
[1725633352079,3.8729,129.14,129.11,3.85940844]
[1725633352280,2.6537,129.19,129.1,2.7412]
[1725633352578,3.8729,129.14,129.11,3.86793067]
[1725633352780,48.61157349,129.2,129.1,2.7412]
[1725633352983,3.8724,129.15,129.1,5.461]
[1725633353383,44.7,129.18,129.1,2.7412]
[1725633353583,2.6258,129.17,129.1,2.7412]
[1725633353984,3.8725,129.15,129.11,3.8735]
[1725633354191,44.7,129.2,129.1,2.7412]
[1725633354192,3.8275481,129.19,129.1,2.7412]
[1725633354687,44.7,129.2,129.11,3.91898462]
[1725633354888,44.7,129.2,129.1,2.7412]
[1725633355077,44.7,129.2,129.12,3.8732]
[1725633355279,44.7,129.2,129.1,5.4697]
[1725633355782,48.6468805,129.2,129.1,13.19913143]
[1725633355989,48.6468805,129.2,129.1,9.32553143]
[1725633356290,3.8726,129.15,129.11,3.8735]
[1725633356589,48.6468805,129.2,129.11,3.8735]
[1725633356795,3.8726,129.15,129.11,3.8735]
[1725633356977,48.6468805,129.2,129.11,3.8735]
[1725633357177,48.6468805,129.2,129.1,9.32553143]
[1725633357178,3.8722,129.16,129.12,3.8733]
[1725633357492,2.6258,129.22,129.11,44.7]
[1725633357683,3.87507791,129.21,129.14,3.8725]
[1725633357883,3.87507791,129.21,129.11,47.4573]
[1725633358091,3.87507791,129.21,129.15,3.8722]
[1725633358392,3.8713,129.19,129.15,3.8722]
[1725633358591,3.87507791,129.21,129.15,3.8722]
[1725633358894,2.6258,129.22,129.14,3.8725]
[1725633359086,3.8721,129.16,129.11,39.9473]
[1725633359288,37.19,129.21,129.11,39.9473]
[1725633359492,3.8718,129.17,129.11,39.9473]
[1725633359887,41.10691201,129.21,129.11,39.9473]
[1725633360093,3.8722,129.16,129.11,39.9473]
[1725633360294,37.19,129.19,129.11,3.8735]
[1725633360497,41.10691201,129.21,129.11,37.19]
[1725633360692,3.91691201,129.21,129.13,37.19]
[1725633360993,37.19,129.21,129.11,37.19]
[1725633361195,3.8724,129.15,129.11,37.19]
[1725633361389,3.8724,129.15,129.12,3.8731]
[1725633361591,37.19,129.21,129.12,3.8731]
[1725633361790,37.19,129.19,129.11,3.8736]
[1725633361992,37.19,129.19,129.1,9.32553143]
[1725633362191,6.44180232,129.22,129.14,37.19]
[1725633362192,2.6258,129.22,129.14,37.19]
[1725633362396,2.5697,129.26,129.18,37.19]
[1725633362596,2.5697,129.26,129.19,2.6528]
[1725633362890,2.5697,129.26,129.19,6.5238]
[1725633363394,3.95425205,129.28,129.2,37.19]
[1725633363592,37.19,129.27,129.19,2.6528]
[1725633364191,37.19,129.25,129.15,2.6204]
[1725633364395,3.8709,129.2,129.15,5.2732]
[1725633364801,37.19,129.25,129.15,5.2732]
[1725633364802,3.8703,129.22,129.15,5.2732]
[1725633365096,37.19,129.27,129.15,5.2732]
[1725633365287,3.8701,129.23,129.19,3.8712]
[1725633365492,3.8373344,129.28,129.19,3.8712]
[1725633365688,37.19,129.29,129.2,3.8708]
[1725633365891,41.10977033,129.29,129.2,3.8708]
[1725633366194,5.1423,129.3,129.22,37.19]
[1725633366491,37.19,129.35,129.26,37.19]
[1725633366893,37.19,129.35,129.26,41.0591]
[1725633367094,41.14058912,129.35,129.26,41.07674512]
[1725633367295,3.95058912,129.35,129.26,41.07674512]
[1725633367501,37.19,129.35,129.24,39.7612]
[1725633367687,37.19,129.33,129.24,43.58100566]
[1725633367992,44.54,129.35,129.24,50.93100566]
[1725633368200,3.8676,129.31,129.24,50.93100566]
[1725633368700,44.54,129.35,129.24,50.93100566]
[1725633369010,5.2766,129.37,129.24,3.81980566]
[1725633369011,0.04903682,129.29,129.24,3.81980566]
[1725633369299,0.04903682,129.29,129.23,2.6534]
[1725633369598,3.8687,129.28,129.23,6.5233]
[1725633369792,3.8687,129.28,129.23,10.33420619]
[1725633369992,44.54,129.33,129.23,6.46430619]
[1725633370196,3.8685,129.28,129.23,10.33410619]
[1725633370493,44.54,129.27,129.14,44.54]
[1725633370700,44.54,129.33,129.15,2.696]
[1725633370701,44.54,129.25,129.15,2.696]
[1725633370995,44.54,129.25,129.15,6.55479752]
[1725633371197,44.54,129.25,129.19,0.05156871]
[1725633371395,0.05608013,129.22,129.19,0.05156871]
[1725633371900,3.8709,129.2,129.19,0.05156871]
[1725633372087,0.05608013,129.22,129.1,44.54]
[1725633372088,44.54,129.21,129.1,44.54]
[1725633372495,3.92493869,129.22,129.12,44.54]
[1725633372693,3.8706,129.21,129.12,44.54]
[1725633372886,3.84912344,129.25,129.14,44.54]
[1725633373197,6.74332959,129.26,129.16,44.54]
[1725633373394,44.54,129.29,129.18,44.54]
[1725633373589,44.54,129.29,129.18,48.46726141]
[1725633373590,0.04921101,129.21,129.18,48.46726141]
[1725633373905,44.54,129.29,129.19,3.8712]
[1725633374195,44.54,129.29,129.18,48.46726141]
[1725633374196,44.54,129.29,129.18,51.04396141]
[1725633374388,3.8693,129.26,129.18,51.04396141]
[1725633374595,44.54,129.29,129.18,51.04396141]
[1725633374801,44.54,129.29,129.18,53.62136141]
[1725633375097,44.8265,129.31,129.18,53.62136141]
[1725633375292,44.54,129.31,129.21,44.54]
[1725633375489,337.0,129.39,129.25,44.54]
[1725633375697,44.54,129.35,129.26,2.5767]
[1725633375994,48.37512852,129.35,129.26,6.52099438]
[1725633376195,48.37512852,129.35,129.26,2.5767]
[1725633376400,3.83512852,129.35,129.26,6.43040994]
[1725633376700,44.54,129.37,129.26,6.43040994]
[1725633377097,48.45167748,129.37,129.26,6.43040994]
[1725633377402,3.82308346,129.38,129.3,44.54]
[1725633377601,44.54,129.39,129.3,44.54]
[1725633377796,48.41995385,129.39,129.27,44.54]
[1725633378002,48.41995385,129.39,129.26,6.46555194]
[1725633378003,44.54,129.37,129.26,6.46555194]
[1725633378697,3.8682,129.31,129.26,10.33485194]
[1725633378899,44.54,129.35,129.26,6.46555194]
[1725633379201,44.54,129.4,129.27,44.54]
[1725633379404,48.48262735,129.4,129.3,44.54]
[1725633379604,48.48262735,129.4,129.28,2.8247]
[1725633379907,3.94262735,129.4,129.3,44.54]
[1725633380206,272.54,129.44,129.32,44.54]
[1725633380507,3.8651,129.41,129.36,3.8663]
[1725633380712,3.81066094,129.41,129.35,2.7544]
[1725633381000,3.8667,129.36,129.3,44.54]
[1725633381204,48.39590166,129.41,129.28,2.7544]
[1725633381506,48.39590166,129.41,129.32,3.8676]
[1725633381507,3.8662,129.37,129.32,3.8676]
[1725633381813,48.39590166,129.41,129.32,3.8676]
[1725633382105,48.39590166,129.41,129.33,3.95063651]
[1725633382307,3.8667,129.36,129.31,3.8679]
[1725633382700,48.39590166,129.41,129.3,44.54]
[1725633383001,3.8673,129.34,129.28,2.7544]
[1725633383401,3.8669,129.35,129.28,2.7544]
[1725633383605,3.8669,129.35,129.3,44.54]
[1725633383997,0.2778,129.4,129.3,44.54]
[1725633384209,44.54,129.41,129.32,44.54]
[1725633384401,48.46323584,129.41,129.33,3.8672]
[1725633384706,48.46323584,129.41,129.3,44.54]
[1725633384908,48.46323584,129.41,129.28,2.7544]
[1725633385207,2.7354,129.4,129.28,2.7544]
[1725633385501,2.7354,129.4,129.34,0.05517528]
[1725633385502,44.54,129.39,129.34,0.05517528]
[1725633385901,3.91630438,129.35,129.34,0.05517528]
[1725633386605,3.8668,129.35,129.34,0.05517528]
[1725633386999,0.0500587,129.36,129.28,6.6231]
[1725633387605,44.54,129.35,129.24,44.54]
[1725633387805,44.54,129.33,129.23,2.5797]
[1725633388110,3.9556455,129.34,129.27,3.869]
[1725633388316,1.0,129.35,129.28,44.54]
[1725633388513,0.05485379,129.29,129.26,44.54]
[1725633388912,0.05485379,129.29,129.24,44.54]
[1725633389102,3.77848085,129.33,129.24,44.54]
[1725633389404,44.54,129.35,129.24,44.54]
[1725633389709,44.54,129.35,129.27,3.8689]
[1725633389710,0.05895436,129.29,129.27,3.8689]
[1725633390011,0.05895436,129.29,129.27,37.17]
[1725633390507,2.6336,129.37,129.28,37.17]
[1725633390907,0.05768499,129.29,129.27,41.0391]
[1725633391112,0.05768499,129.29,129.25,37.17]
[1725633391300,3.8694,129.27,129.23,6.4499]
[1725633391504,39.968,129.32,129.23,6.4499]
[1725633391913,3.92669442,129.28,129.24,3.8699]
[1725633392115,0.05769442,129.28,129.24,37.17]
[1725633392414,3.92659442,129.28,129.25,3.8696]
[1725633392611,3.92659442,129.28,129.24,37.17]
[1725633392908,0.05769442,129.28,129.27,3.8692]
[1725633393102,0.05769442,129.28,129.27,7.71394582]
[1725633393502,1.0,129.36,129.27,3.84474582]
[1725633393712,3.8671,129.34,129.3,3.8681]
[1725633393907,4.85489426,129.36,129.3,3.8681]
[1725633394208,3.8675,129.33,129.29,41.0384]
[1725633394405,3.8675,129.33,129.23,2.5797]
[1725633394406,4.85489426,129.36,129.28,3.89822507]
[1725633394602,4.85489426,129.36,129.23,2.5797]
[1725633394603,3.8673,129.34,129.25,37.17]
[1725633394806,37.17,129.35,129.25,40.9653144]
[1725633395113,3.8691,129.28,129.23,39.7497]
[1725633395414,37.17,129.33,129.24,3.8698]
[1725633395624,37.17,129.33,129.25,3.94890664]
[1725633395910,3.869,129.28,129.25,3.94890664]
[1725633396114,37.17,129.33,129.24,3.8698]
[1725633396314,3.869,129.28,129.25,3.8475435]
[1725633396616,44.56,129.33,129.25,3.8695]
[1725633396808,44.56,129.33,129.25,3.82046175]
[1725633397003,44.56,129.33,129.25,3.8697]
[1725633397206,44.56,129.33,129.25,7.69956592]